[Event "German Bundesliga 2024-25"]
[Site "Germany"]
[Date "2024.12.01"]
[Round "4.10"]
[White "Areshchenko, Alexander"]
[Black "Aravindh, Chithambaram VR."]
[Result "0-1"]
[Annotator "TA"]
[ECO "C60"]
[WhiteElo "2606"]
[BlackElo "2706"]
[PlyCount "176"]
[EventDate "2024.09.27"]
[EventType "team-tourn"]
[EventCountry "GER"]
[SourceTitle "playchess.com"]
[Source "ChessBase"]
[SourceQuality "1"]
[WhiteTeam "Werder Bremen"]
[BlackTeam "Viernheim"]
[TimeControl "40/5400+30:1800+30"]

{[%evp 9,176,50,51,25,14,8,8,22,15,15,25,-7,0,0,0,-14,-2,-7,-10,-8,-2,-66,-80,-62,-60,-91,-71,-90,-90,-86,-87,-79,-72,-80,-79,-77,-76,-179,-100,-226,-155,-236,-153,-149,-135,-129,-139,-128,-96,-97,-99,-91,-95,-150,-110,-109,-113,-141,-138,-137,-126,-134,-126,-123,-131,-137,-130,-151,-148,-150,-154,-154,-152,-175,-169,-224,-220,-228,-219,-221,-211,-212,-198,-332,-319,-420,-413,-461,-446,-416,-375,-391,-343,-364,-277,-277,0,-315,-315,-357,-315,-359,-359,-343,-315,-352,-345,-391,-271,-360,-360,-352,-350,-466,-482,-485,-390,-768,-709,-1993,-362,-2502,-3019,-1383,-812,-878,-878,-1051,-597,-937,0,-358,-343,-318,-317,-317,-312,-300,-266,-29962,-29964,-29962,-29962,-29970,-29970,-29970,-29971,-29970,-29970,-29974,-29975,-29974,-29973,-29978,-29979,-29978,-29973,-29973,-29974,-29983,-29984,-29984,-29985,-29985,-29986,-29986,-29987,-29987,-29988]} 1. e4 {[%emt 0:00:04]} e5 {[%emt 0:00:08]} 2. Nf3 {[%emt 0:00:04]} Nc6 {[%emt 0:00:06]} 3. Bb5 {[%emt 0:00:05][%cal Bf1b5,Bb5a4,Ba4d1,Bd1f3,Bf3e4][%mdl 32]} Nge7 {[%emt 0:00:14]} 4. O-O {[%emt 0:01:35]} Ng6 {[%emt 0:00:09]} 5. c3 {[%emt 0:00:30]} a6 {[%emt 0:00:14]} 6. Ba4 {[%emt 0:00:05]} d5 {[%emt 0:00:16]} 7. exd5 {[%emt 0:08:33]} Qxd5 {[%emt 0:00:07]} 8. d4 {[%emt 0:00:51][%cal Oc3c4] Black must now prevent c4! The position is equal.} Bg4 {[%emt 0:02:36]} 9. dxe5 {[%emt 0:02:53]} Qxd1 {[%emt 0:08:13]} 10. Bxd1 {[%emt 0:07:18]} Bxf3 {[%emt 0:09:43]} 11. Bxf3 {[%emt 0:00:23]} Ngxe5 {[%emt 0:00:05]} 12. Be4 {[%emt 0:27:40]} O-O-O {[%emt 0:02:38]} 13. Nd2 {[%emt 0:00:07]} Bc5 {[%emt 0:00:50]} 14. Nb3 {[%emt 0:06:31]} Bb6 {[%emt 0:01:22]} 15. Bf4 {[%emt 0:02:17]} (15. Re1 $11) 15... Nc4 $1 $15 {[%emt 0:20:21]} 16. Rab1 {[%emt 0:13:08]} Rhe8 $1 {[%emt 0:00:20]} 17. Bf3 {[%emt 0:10:23]} (17. Bxh7 $2 g6 18. h3 Rh8 $19) 17... f5 {[%emt 0:29:30]} 18. a4 {[%emt 0:04:05]} N6e5 {[%emt 0:04:11]} 19. Bxe5 {[%emt 0:00:23]} Rxe5 {[%emt 0:00:13]} 20. g3 {[%emt 0:01:41] White is weak on the dark squares} c6 {[%emt 0:00:55]} 21. Kg2 {[%emt 0:00:58]} g6 {[%emt 0:00:06]} 22. h3 {[%emt 0:05:06]} Kc7 {[%emt 0:00:47] Black has more active pieces.} 23. g4 {[%emt 0:02:01] [#]} (23. h4 $17 {was worth a try.}) 23... a5 {[%emt 0:04:20]} (23... fxg4 $1 $19 24. hxg4 a5) 24. gxf5 {[%emt 0:01:29]} (24. g5 $17) 24... Rxf5 {[%emt 0:01:17] Hoping for ...Rdf8.} 25. Bg4 {[%emt 0:01:13]} (25. Be2 $17 Rf4 26. Bxc4 Rxc4 27. Rfe1) 25... Rf6 {[%emt 0:02:00] ...Rdf8 would now be deadly.} 26. Be2 {[%emt 0:00:45]} Nd2 {[%emt 0:03:56]} 27. Nxd2 {[%emt 0:00:06]} Rxd2 {[%emt 0:00:02]} 28. Bf3 {[%emt 0:00:17]} Rf4 {[%emt 0:00:48]} 29. b4 {[%emt 0:01:53]} Rd3 {[%emt 0:00:10][%csl LRc3,LRf3]} 30. Bg4 {[%emt 0:01:16]} h5 {[%emt 0:00:51]} 31. Be6 {[%emt 0:00:58]} (31. bxa5 $142 Bxa5 32. Rfd1 Rxd1 (32... Rxc3 $2 33. Rd7+ Kc8 34. Be6 $18) 33. Bxd1) 31... Rf6 {[%emt 0:01:05]} ({But not} 31... Rxc3 32. bxa5 Bxa5 33. Rfd1 $15) 32. bxa5 {[%emt 0:00:41]} Bxa5 {[%emt 0:00:06]} 33. Bb3 {[%emt 0:00:38]} Rxc3 {[%emt 0:00:23]} 34. Bd1 {[%emt 0:00:59]} Rc4 {[%emt 0:03:24]} 35. Rb3 {[%emt 0:00:20]} Bb6 {[%emt 0:00:47]} ({Resist} 35... Rxa4 36. Rxb7+ Kxb7 37. Bxa4 $17) 36. Rf3 {[%emt 0:00:31]} Rxf3 {[%emt 0:02:41]} 37. Kxf3 $17 {[%emt 0:00:04][%mdl 4096] Endgame. KRB-KRB} g5 {[%emt 0:00:16]} 38. Ke2 {[%emt 0:00:55]} Re4+ {[%emt 0:00:35]} 39. Kd2 {[%emt 0:00:32]} Rf4 {[%emt 0:01:03]} 40. Bxh5 {[%emt 0:00:38]} Rxa4 {[%emt 0:00:33]} ({Much less strong is} 40... Rxf2+ 41. Rxf2 Bxf2 42. Bg4 $15) 41. f3 {[%emt 0:00:41]} Bc5 {[%emt 0:04:08]} 42. Kc2 {[%emt 0:01:20]} (42. Rc1 $142 Bd6 43. Kd3) 42... b5 $19 {[%emt 0:02:31]} 43. Re1 {[%emt 0:00:33]} Bd6 {[%emt 0:02:01] Wards off Re5} 44. Re6 {[%emt 0:11:18]} Rc4+ {[%emt 0:01:34]} 45. Kb3 {[%emt 0:00:27]} Rd4 {[%emt 0:01:09]} 46. Rg6 {[%emt 0:01:48]} (46. Bg6 {might work better.}) 46... Bf4 {[%emt 0:01:45]} 47. Rg7+ {[%emt 0:03:42]} Kb6 {[%emt 0:00:21]} 48. Rg6 {[%emt 0:00:21]} Rd3+ {[%emt 0:03:09]} 49. Kc2 {[%emt 0:00:10]} Rd2+ {[%emt 0:00:11]} 50. Kb3 {[%emt 0:01:02]} Rd5 {[%emt 0:10:04]} 51. Re6 {[%emt 0:01:12]} Bd6 {[%emt 0:00:30]} 52. Bg6 {[%emt 0:00:51]} Bf4 $2 {[%emt 0:03:46]} ({Better is} 52... Bh2 $19 {aiming for ...Rd6.} 53. Bh5 Rd6 54. Rxd6 Bxd6) 53. Be4 $2 {[%emt 0:00:43][%mdl 8192] [#]} (53. Bh5 $1 $11 Rd6 54. Re4) 53... Rd6 $1 {[%emt 0:00:05]} 54. Re8 {[%emt 0:06:30]} Rh6 {[%emt 0:00:20] Inhibits Rb8+.} 55. Bf5 {[%emt 0:03:54]} c5 {[%emt 0:03:11]} 56. Kc3 {[%emt 0:01:52]} Bg3 {[%emt 0:01:00]} 57. Rg8 {[%emt 0:00:31]} Be5+ {[%emt 0:00:15]} 58. Kb3 {[%emt 0:01:02]} Bf4 {[%emt 0:01:52]} 59. Re8 {[%emt 0:00:21]} Rf6 {[%emt 0:00:39]} 60. Be4 {[%emt 0:00:09]} Rf7 {[%emt 0:00:45]} 61. Rc8 {[%emt 0:01:17]} c4+ {[%emt 0:01:37]} 62. Kc3 {[%emt 0:00:18]} Rd7 {[%emt 0:00:09]} 63. Rc6+ $2 {[%emt 0:00:41]} (63. Bf5 Be5+ 64. Kc2) 63... Ka5 {[%emt 0:00:07] ...Be5+ is the strong threat.} 64. Rc8 {[%emt 0:01:16]} Be5+ {[%emt 0:00:36]} 65. Kc2 {[%emt 0:00:03]} Kb4 {[%emt 0:00:07] ( -> ...Bf4)} 66. Rf8 {[%emt 0:00:49]} Ra7 {[%emt 0:01:47]} 67. Rf5 {[%emt 0:00:17]} Ra2+ {[%emt 0:00:33]} 68. Kb1 {[%emt 0:00:13]} Ra1+ {[%emt 0:00:41]} 69. Kc2 {[%emt 0:00:03]} Ra2+ $2 {[%emt 0:00:25]} (69... Bf4 70. Kb2 Rg1) 70. Kb1 $1 {[%emt 0:00:03]} Rb2+ {[%emt 0:00:04]} 71. Kc1 {[%emt 0:00:15]} Bd4 {[%emt 0:00:03]} 72. Bc6 {[%emt 0:02:18]} Ka5 {[%emt 0:01:11]} 73. Rd5 {[%emt 0:00:08]} Bc3 {[%emt 0:00:11]} 74. Rxg5 $2 {[%emt 0:00:11]} (74. Bd7 $19) 74... Bd2+ {[%emt 0:00:55] Black mates.} 75. Kxb2 {[%emt 0:00:07]} Bxg5 {[%emt 0:01:39] KB-KB} 76. Be8 {[%emt 0:01:34]} b4 {[%emt 0:00:00]} 77. Bf7 {[%emt 0:00:32]} Bf6+ {[%emt 0:00:00]} 78. Kb1 {[%emt 0:00:27]} Kb5 {[%emt 0:00:00]} 79. f4 {[%emt 0:00:27]} b3 {[%emt 0:00:00]} 80. Be6 {[%emt 0:00:35]} Kb4 {[%emt 0:00:00]} 81. Bg4 {[%emt 0:00:31]} c3 {[%emt 0:00:03]} 82. Bf5 {[%emt 0:00:24]} Bh4 {[%emt 0:00:34]} 83. Be4 {[%emt 0:00:37]} Kc4 {[%emt 0:00:49]} 84. Bh7 {[%emt 0:00:13]} Bg3 {[%emt 0:00:09]} 85. Bg8+ {[%emt 0:00:20]} Kb4 {[%emt 0:00:04]} 86. Bh7 {[%emt 0:00:03]} Bxf4 {[%emt 0:00:10]} 87. h4 {[%emt 0:00:05]} Kc5 {[%emt 0:00:20]} 88. h5 {[%emt 0:00:03]} Kd4 {[%emt 0:00:41] Weighted Error Value: White=0.31/Black=0.18 (very precise) .  Loses game:     	White=1     	---        Missed win:     	---       	Black=1      Mistake:       	White=9     	Black=1      Inaccurate:     	White=6     	Black=3      OK:         	White=14    	Black=24     Best:        	White=5     	Black=3      Strong:       	White=1     	Black=3} 0-1

[Event "German Bundesliga 2024-25"]
[Site "Germany"]
[Date "2024.12.01"]
[Round "4.10"]
[White "Fridman, Daniel"]
[Black "Delchev, Aleksander"]
[Result "1-0"]
[Annotator "TA"]
[ECO "E08"]
[WhiteElo "2581"]
[BlackElo "2464"]
[PlyCount "97"]
[EventDate "2024.09.27"]
[EventType "team-tourn"]
[EventCountry "GER"]
[SourceTitle "playchess.com"]
[Source "ChessBase"]
[SourceQuality "1"]
[WhiteTeam "Muelheim Nord"]
[BlackTeam "Deggendorf"]
[TimeControl "40/5400+30:1800+30"]

{[%evp 18,97,26,20,10,5,19,11,29,6,0,0,8,8,10,6,33,28,26,27,25,13,14,14,53,47,64,57,84,33,21,21,79,66,89,81,81,72,131,126,125,141,187,173,196,195,242,249,287,269,271,202,182,177,177,181,229,212,212,186,185,186,176,0,176,174,171,163,168,166,169,172,177,169,213,206,249,252,1394,899,1406,1324]} 1. Nf3 {[%emt 0:00:38]} d5 {[%emt 0:00:25]} 2. g3 {[%emt 0:00:13]} Nf6 {[%emt 0:00:58]} 3. Bg2 {[%emt 0:00:07]} e6 {[%emt 0:00:06]} 4. O-O {[%emt 0:01:48]} Be7 {[%emt 0:00:23]} 5. d4 {[%emt 0:01:20]} O-O {[%emt 0:00:11]} 6. c4 {[%emt 0:00:06]} c6 {[%emt 0:00:51]} 7. Qc2 {[%emt 0:00:27]} b6 {[%emt 0:01:11]} 8. Rd1 {[%emt 0:01:03]} Bb7 {[%emt 0:05:47]} 9. b3 {[%emt 0:00:12]} Nbd7 {[%emt 0:02:23]} 10. Nc3 {[%emt 0:01:42]} Ba6 {[%emt 0:01:47]} 11. Nd2 {[%emt 0:23:08]} b5 {[%emt 0:10:40]} 12. e3 {[%emt 0:04:18]} Qc8 {[%emt 0:19:38] The position is equal.} 13. cxb5 {[%emt 0:11:33]} cxb5 {[%emt 0:00:06] Hoping for ...b4.} 14. a3 {[%emt 0:00:06]} b4 {[%emt 0:07:02]} 15. axb4 {[%emt 0:00:06]} Bxb4 {[%emt 0:00:03]} (15... Be2 $5 16. Re1 $8 Bxb4 $11) 16. Bb2 {[%emt 0:01:05]} Qb7 {[%emt 0:00:16]} 17. Ba3 {[%emt 0:08:08] Black must now prevent Bxb4.} Rfc8 {[%emt 0:24:37]} 18. Bxb4 {[%emt 0:04:42]} Qxb4 {[%emt 0:00:04]} 19. Rdc1 {[%emt 0:00:10]} Bb5 {[%emt 0:03:43]} 20. Qb2 {[%emt 0:03:58]} a5 {[%emt 0:02:06]} 21. Nxb5 {[%emt 0:03:37]} Qxb5 {[%emt 0:00:09]} 22. Bf1 {[%emt 0:00:39]} Qb6 {[%emt 0:00:51] [#]} 23. Rxc8+ {[%emt 0:07:01]} (23. Ra4 $1 $16) 23... Rxc8 $14 {[%emt 0:00:05]} 24. Qa2 {[%emt 0:00:05]} g6 {[%emt 0:02:49]} (24... Ra8 $11 {keeps the balance.}) 25. Qxa5 $16 {[%emt 0:02:17]} Qxa5 {[%emt 0:00:05]} 26. Rxa5 {[%emt 0:00:09]} Rc2 {[%emt 0:00:05]} 27. Nf3 {[%emt 0:01:07]} Rb2 {[%emt 0:10:14]} (27... Ng4 $142) 28. Ra8+ {[%emt 0:01:01]} Nf8 {[%emt 0:00:45]} 29. Ne5 {[%emt 0:02:54] Prevents Ng4} Rxb3 {[%emt 0:00:12]} (29... Rb1 $16 {keeps fighting.} 30. b4 Ne4) 30. Ra7 $18 {[%emt 0:00:16]} Rb1 {[%emt 0:01:29]} 31. f3 {[%emt 0:01:30] Against Ne4} Rb3 {[%emt 0:03:00] [#]} (31... Ne8 $142 32. Nxf7 Rb6) 32. Kf2 $1 {[%emt 0:00:33]} (32. Rxf7 Ne8 33. Kf2 Nd6) (32. Nxf7 $6 N6d7 $16) 32... Rb2+ {[%emt 0:00:04]} 33. Be2 {[%emt 0:00:13]} Rc2 {[%emt 0:01:19]} 34. Rxf7 {[%emt 0:04:50]} ({But not} 34. Nxf7 $6 N6d7 $18) 34... Ne8 {[%emt 0:01:15]} 35. Re7 {[%emt 0:02:24]} Nd6 {[%emt 0:00:04]} 36. Ng4 {[%emt 0:00:25]} Rb2 {[%emt 0:00:37]} (36... Kh8 $142 37. Nf6 Rc1) 37. Nh6+ {[%emt 0:13:05]} Kh8 {[%emt 0:00:04]} 38. Rc7 {[%emt 0:00:29]} Rb7 {[%emt 0:00:15] [#]} 39. Nf7+ $1 {[%emt 0:00:29][%mdl 512]} Kg8 {[%emt 0:00:19]} 40. Nh6+ {[%emt 0:00:07]} (40. Nxd6 $2 {perishes.} Rxc7 41. h3 Nd7 $19) 40... Kh8 {[%emt 0:00:04]} 41. Rxb7 {[%emt 0:08:28]} Nxb7 {[%emt 0:00:04][%mdl 4096] Endgame. KBN-KNN} 42. g4 {[%emt 0:00:13][%cal Bg3g4,Bg4g5][%mdl 32]} Kg7 {[%emt 0:00:07]} 43. g5 {[%emt 0:00:06]} Nd6 {[%emt 0:00:28]} 44. Kg3 {[%emt 0:01:50]} Nd7 {[%emt 0:04:02]} 45. Kf4 {[%emt 0:00:28]} Kf8 {[%emt 0:00:27]} 46. e4 {[%emt 0:00:47]} dxe4 {[%emt 0:00:18]} 47. fxe4 {[%emt 0:00:05]} Nf7 $2 {[%emt 0:04:41]} (47... Nb7 48. Bb5 e5+ 49. Kf3 (49. dxe5 Ndc5 $18) 49... Nb6 50. dxe5 Nc5) 48. Nxf7 {[%emt 0:02:38]} Kxf7 {[%emt 0:00:05]} 49. Bb5 {[%emt 0:02:26] Weighted Error Value: White=0.12 (very precise) /Black=0.18 (very precise) .  Loses game:     	---       	Black=1      Mistake:       	White=1     	Black=6      Inaccurate:     	---       	Black=3      OK:         	White=17    	Black=10     Best:        	White=6     	Black=1} 1-0

[Event "German Bundesliga 2024-25"]
[Site "Germany"]
[Date "2024.12.01"]
[Round "4.11"]
[White "Deac, Bogdan-Daniel"]
[Black "Vogel, Roven"]
[Result "1-0"]
[Annotator "TA"]
[ECO "C77"]
[WhiteElo "2687"]
[BlackElo "2558"]
[PlyCount "93"]
[EventDate "2024.09.27"]
[EventType "team-tourn"]
[EventCountry "GER"]
[SourceTitle "playchess.com"]
[Source "ChessBase"]
[SourceQuality "1"]
[WhiteTeam "Baden-Baden"]
[BlackTeam "TU Dresden"]
[TimeControl "40/5400+30:1800+30"]

{[%evp 21,93,11,16,4,10,4,22,14,15,15,23,13,22,6,21,13,18,0,24,4,25,18,91,90,81,93,84,96,85,95,92,95,114,49,34,25,25,25,73,59,83,77,78,37,89,28,50,59,53,48,76,69,114,103,133,122,207,123,312,258,994,963,882,835,29978,29977,29991,29992,29992,29993,29993,29994,29995,29996]} 1. e4 {[%emt 0:00:03]} e5 {[%emt 0:00:10]} 2. Nf3 {[%emt 0:00:02]} Nc6 {[%emt 0:00:11]} 3. Bb5 {[%emt 0:00:03]} a6 {[%emt 0:00:11]} 4. Ba4 {[%emt 0:00:08]} Nf6 {[%emt 0:00:09]} 5. O-O {[%emt 0:00:04]} Be7 {[%emt 0:00:08]} 6. d3 {[%emt 0:00:12]} b5 {[%emt 0:00:08]} 7. Bb3 {[%emt 0:00:03]} O-O {[%emt 0:00:30]} 8. Nc3 {[%emt 0:02:55]} d6 {[%emt 0:00:24]} 9. a3 {[%emt 0:00:23]} h6 {[%emt 0:03:23] C77: Ruy Lopez: 3...a6 4 Ba4 Nf6, unusual lines.} 10. Be3 {[%emt 0:12:25]} Re8 {[%emt 0:02:22]} 11. h3 {[%emt 0:20:36]} Bf8 {[%emt 0:04:03]} 12. Re1 {[%emt 0:01:18]} Rb8 {[%emt 0:07:35]} 13. Nd2 $1 $146 {[%emt 0:01:47][%mdl 8] A top novelty.} ({Predecessor:} 13. Ne2 d5 14. Ng3 Be6 15. c3 Qd7 16. Bc2 Rbd8 17. a4 dxe4 18. dxe4 Qc8 19. Nd2 Qb7 20. axb5 axb5 21. b4 Ne7 {½-½ Deac,B (2700)-Dubov,D (2708) Speed Chess Q2 blitz 2022 (8)}) 13... Ne7 {[%emt 0:02:28]} 14. f4 {[%emt 0:00:52]} exf4 {[%emt 0:01:56]} 15. Bxf4 {[%emt 0:00:03]} Ng6 {[%emt 0:00:47]} 16. Bg3 {[%emt 0:01:24]} c5 {[%emt 0:04:39]} 17. Qf3 {[%emt 0:01:52]} Be6 {[%emt 0:03:47]} 18. Kh1 {[%emt 0:02:32]} Nd7 {[%emt 0:04:23]} 19. Qf2 {[%emt 0:06:31]} Nge5 {[%emt 0:08:27]} 20. Ba2 {[%emt 0:02:02]} Rc8 {[%emt 0:08:42]} 21. Rf1 {[%emt 0:01:00]} Nb6 {[%emt 0:15:29]} (21... Nf6 $11 {remains equal.}) 22. Bxe6 $16 {[%emt 0:18:22]} fxe6 {[%emt 0:00:17]} 23. a4 {[%emt 0:00:22]} b4 {[%emt 0:04:05]} 24. Bxe5 {[%emt 0:00:22]} dxe5 {[%emt 0:00:25]} 25. Nd1 {[%emt 0:00:27]} Be7 {[%emt 0:10:30]} 26. a5 {[%emt 0:02:48]} Nd7 {[%emt 0:01:20]} 27. Nc4 {[%emt 0:01:28]} ({Better is} 27. Qf7+ $16 Kh8 28. Nf2 (28. Qxe6 Bg5 $11)) 27... Rf8 $14 {[%emt 0:01:48]} 28. Qe2 {[%emt 0:00:21]} Rxf1+ {[%emt 0:00:24]} 29. Qxf1 {[%emt 0:00:01]} Bg5 {[%emt 0:02:26]} (29... Bh4 $11) 30. g3 {[%emt 0:02:29]} Qe7 {[%emt 0:02:55]} 31. Qe2 {[%emt 0:02:14]} Nb8 {[%emt 0:02:39]} 32. Nf2 {[%emt 0:10:20]} (32. Nxe5 Qd6 33. Nf3 Qxg3 $15) 32... Nc6 {[%emt 0:00:40] [#]} (32... Rf8 $14) 33. c3 {[%emt 0:00:28]} (33. h4 $1 $16 {[%cal Rh4g5]} Bxh4 (33... Nd4 34. Qh5 $17) 34. gxh4 Qxh4+ 35. Kg2) 33... Rb8 {[%emt 0:06:02]} 34. h4 {[%emt 0:01:15]} Bf6 {[%emt 0:00:02]} 35. Ng4 {[%emt 0:01:29]} bxc3 {[%emt 0:01:55]} 36. bxc3 {[%emt 0:00:07]} Rb3 {[%emt 0:00:08]} 37. Qc2 {[%emt 0:04:07]} Rb5 {[%emt 0:00:22]} 38. Rf1 {[%emt 0:02:40]} Kh7 {[%emt 0:01:14]} (38... Nb8 $16 39. Qa2 (39. Ncxe5 Bxe5 40. Nxe5 Qd6 $11) 39... Nd7) 39. Qa2 {[%emt 0:03:30]} (39. Qd2 $18 {[%cal Of1f6] aiming for Rxf6!} Nxa5 40. Nxa5 (40. Ncxe5 Bxe5 41. Nxe5 Qd6 $11) (40. Ngxe5 Qc7 $17) 40... Rxa5 41. Rxf6 gxf6 42. Qxh6+ (42. Nxh6 $2 Qg7 $19) 42... Kg8 43. Nxf6+ Kf7 44. Ng4) 39... Qd8 $2 {[%emt 0:01:05]} (39... Rb8 $16 {was worth a try.} 40. Nxf6+ gxf6) 40. Nce3 $18 {[%emt 0:00:38]} Qxd3 $2 {[%emt 0:01:31]} (40... Nxa5 $2 {too greedy.} 41. Qxe6 Kh8 42. Nd5 $18 (42. Qxa6 Rb7 $18)) (40... Bxh4 41. Qxe6 (41. gxh4 Qxh4+ 42. Kg2 Qe7 $18) 41... Bxg3) 41. Nxf6+ $18 {[%emt 0:30:16]} (41. Qxe6 Qxe4+ 42. Kh2 Be7 $16) 41... gxf6 {[%emt 0:02:14]} 42. Qxe6 {[%emt 0:00:00]} Qxe4+ {[%emt 0:00:57]} 43. Kh2 {[%emt 0:00:00]} Rb7 {[%emt 0:04:33]} 44. Rxf6 {[%emt 0:00:00]} Rb2+ {[%emt 0:04:42]} 45. Kh3 {[%emt 0:00:00]} Qh1+ {[%emt 0:00:06]} 46. Kg4 {[%emt 0:00:00]} Qe4+ {[%emt 0:00:06]} 47. Kh5 {[%emt 0:00:00]} 1-0

[Event "German Bundesliga 2024-25"]
[Site "Germany"]
[Date "2024.12.01"]
[Round "4.11"]
[White "Anton Guijarro, David"]
[Black "Efimenko, Zahar"]
[Result "1/2-1/2"]
[Annotator "RC"]
[ECO "A13"]
[WhiteElo "2671"]
[BlackElo "2567"]
[PlyCount "51"]
[EventDate "2024.09.27"]
[EventType "team-tourn"]
[EventCountry "GER"]
[SourceTitle "playchess.com"]
[Source "ChessBase"]
[SourceQuality "1"]
[WhiteTeam "Viernheim"]
[BlackTeam "Werder Bremen"]
[TimeControl "40/5400+30:1800+30"]

1. c4 {[%emt 0:00:08]} Nf6 {[%emt 0:04:00]} 2. Nf3 {[%emt 0:00:42]} e6 {[%emt 0:00:30]} 3. g3 {[%emt 0:01:30]} d5 {[%emt 0:00:43]} 4. Bg2 {[%emt 0:00:30]} dxc4 {[%emt 0:01:08]} 5. Qa4+ {[%emt 0:00:59]} Nbd7 {[%emt 0:01:39]} 6. Qxc4 {[%emt 0:01:34]} c5 {[%emt 0:00:13]} 7. d3 {[%emt 0:02:39]} Bd6 {[%emt 0:03:14]} 8. a4 {[%emt 0:02:02]} O-O {[%emt 0:06:41]} 9. Nc3 {[%emt 0:01:09]} a6 {[%emt 0:05:48]} 10. a5 {[%emt 0:03:26]} b5 {[%emt 0:02:01]} 11. axb6 {[%emt 0:00:11]} Nxb6 {[%emt 0:00:03]} 12. Qa2 {[%emt 0:02:19]} Bb7 {[%emt 0:02:08]} 13. O-O {[%emt 0:03:41]} h6 {[%emt 0:02:20]} 14. Nd2 {[%emt 0:05:24]} Bxg2 {[%emt 0:05:15]} 15. Kxg2 {[%emt 0:00:08]} Nfd5 {[%emt 0:02:05]} 16. Nc4 {[%emt 0:03:21]} Be7 {[%emt 0:00:55]} 17. Kg1 {[%emt 0:13:18]} Qc7 {[%emt 0:12:55]} 18. Nxd5 {[%emt 0:05:17]} Nxd5 {[%emt 0:02:09]} 19. Bd2 {[%emt 0:00:38]} Rfb8 {[%emt 0:02:45]} 20. Qa4 {[%emt 0:02:15]} Qb7 {[%emt 0:02:52]} 21. Ra2 {[%emt 0:03:04]} Bf6 {[%emt 0:08:01]} 22. Qc2 {[%emt 0:15:36]} Qb3 {[%emt 0:07:36]} 23. Qxb3 {[%emt 0:00:27]} Rb6 {[%emt 0:00:22]} 24. Qb4 Rxb4 {[%emt 0:00:29]} 25. Rc1 {[%emt 0:01:39]} Rb3 {[%emt 0:04:10]} 26. Nb6 {[%emt 0:02:25]} 1/2-1/2

[Event "German Bundesliga 2024-25"]
[Site "Germany"]
[Date "2024.12.01"]
[Round "4.11"]
[White "Popovic, Dusan"]
[Black "Vrolijk, Liam"]
[Result "1/2-1/2"]
[Annotator "TA"]
[ECO "A05"]
[WhiteElo "2487"]
[BlackElo "2512"]
[PlyCount "43"]
[EventDate "2024.09.27"]
[EventType "team-tourn"]
[EventCountry "GER"]
[SourceTitle "playchess.com"]
[Source "ChessBase"]
[SourceQuality "1"]
[WhiteTeam "Deggendorf"]
[BlackTeam "Muelheim Nord"]
[TimeControl "40/5400+30:1800+30"]

{[%evp 11,43,0,8,0,8,0,0,0,12,0,9,22,24,22,28,16,39,-7,0,0,0,0,0,0,0,0,0,0,0,0,0,0,0,0]} 1. Nf3 {[%emt 0:00:04]} d5 {[%emt 0:00:17]} 2. g3 {[%emt 0:00:07]} Nf6 {[%emt 0:00:46]} 3. Bg2 {[%emt 0:00:10]} c5 {[%emt 0:00:30]} 4. O-O {[%emt 0:00:05]} g6 {[%emt 0:00:16]} 5. b3 {[%emt 0:00:27]} Bg7 {[%emt 0:03:42]} 6. Bb2 {[%emt 0:00:07]} Nc6 {[%emt 0:05:35]} 7. Ne5 {[%emt 0:00:49]} Nxe5 {[%emt 0:03:54]} 8. Bxe5 {[%emt 0:00:18]} O-O {[%emt 0:03:46]} 9. c4 {[%emt 0:11:59]} d4 {[%emt 0:05:26]} 10. e3 {[%emt 0:02:18]} Ng4 {[%emt 0:03:44]} 11. Bxg7 {[%emt 0:03:18]} Kxg7 {[%emt 0:00:08]} 12. exd4 {[%emt 0:09:55]} (12. h3 {simplifies} Nh6 13. exd4 cxd4 14. Qe2) 12... Qxd4 {[%emt 0:20:15]} 13. Nc3 {[%emt 0:01:03]} Rd8 {[%emt 0:11:01][%cal Oa7a6]} 14. Nd5 {[%emt 0:40:41]} (14. Qe1 $14) 14... Ne5 {[%emt 0:12:45] The position is equal.} 15. h3 {[%emt 0:17:40]} Nc6 {[%emt 0:11:43]} 16. Re1 {[%emt 0:00:00]} e6 {[%emt 0:00:20]} 17. Re4 {[%emt 0:01:38]} (17. Nc7 $5 Rb8 $8 18. Nb5 $11) 17... Qb2 {[%emt 0:01:43]} 18. Rb1 {[%emt 0:02:23]} Qxa2 {[%emt 0:01:09]} 19. Ra1 $1 {[%emt 0:01:43]} Qb2 {[%emt 0:00:08]} 20. Rb1 {[%emt 0:01:22]} Qa2 {[%emt 0:00:14]} 21. Ra1 $1 {[%emt 0:00:24]} Qb2 {[%emt 0:00:24]} 22. Rb1 {[%emt 0:00:32] An uneventful encounter.   Weighted Error Value: White=0.04 (flawless) /Black=0.04 (flawless) .  Mistake:       	White=1     	---        OK:         	White=5     	Black=7      Best:        	White=3     	---        Strong:       	White=2     	---} 1/2-1/2